[Event "Moscow-ch Women 2021"]
[Site "Moscow"]
[Date "2021.03.25"]
[Round "1.1"]
[White "Charochkina, Daria"]
[Black "Ivanova, Anastasia S."]
[Result "1-0"]
[ECO "A49"]
[WhiteElo "2337"]
[BlackElo "1830"]
[Annotator "RC"]
[PlyCount "68"]
[EventDate "2021.03.25"]
[EventType "swiss"]
[EventCountry "RUS"]
[SourceTitle "playchess.com"]
[Source "ChessBase"]
[SourceQuality "1"]
[TimeControl "5400+30"]

1. d4 {[%emt 0:00:00]} Nf6 {[%emt 0:00:00]} 2. Nf3 {[%emt 0:00:00]} g6 {[%emt 0:00:00]} 3. g3 {[%emt 0:00:15]} Bg7 {[%emt 0:00:00]} 4. Bg2 {[%emt 0:00:11]} d6 {[%emt 0:00:00]} 5. O-O {[%emt 0:00:09]} O-O {[%emt 0:00:12]} 6. a4 {[%emt 0:02:19]} Nbd7 {[%emt 0:03:00]} 7. a5 {[%emt 0:17:04]} Rb8 {[%emt 0:11:41]} 8. Nc3 {[%emt 0:01:00]} c6 {[%emt 0:04:22]} 9. e4 {[%emt 0:29:46]} b6 {[%emt 0:18:24]} 10. Re1 {[%emt 0:07:57]} Ne8 {[%emt 0:08:35]} 11. e5 {[%emt 0:03:29]} Nc7 {[%emt 0:04:49]} 12. Bf4 {[%emt 0:11:26]} dxe5 {[%emt 0:09:30]} 13. Nxe5 {[%emt 0:00:10]} Nxe5 {[%emt 0:01:02]} 14. Bxe5 {[%emt 0:00:43]} Bxe5 {[%emt 0:08:32]} 15. Rxe5 {[%emt 0:00:05]} bxa5 {[%emt 0:07:16]} 16. Rexa5 {[%emt 0:00:05]} Rxb2 {[%emt 0:01:30]} 17. Bxc6 {[%emt 0:01:04]} Bf5 {[%emt 0:03:18]} 18. Be4 {[%emt 0:01:47]} Bxe4 {[%emt 0:00:53]} 19. Nxe4 {[%emt 0:00:05]} a6 {[%emt 0:09:32]} 20. Qd3 {[%emt 0:07:13]} Ne6 {[%emt 0:02:46]} 21. d5 {[%emt 0:01:28]} f5 {[%emt 0:02:13]} 22. Nd2 {[%emt 0:03:33]} Nc7 {[%emt 0:00:37]} 23. Nb3 {[%emt 0:01:57]} Nb5 {[%emt 0:02:27]} 24. Rxa6 {[%emt 0:01:43]} Qd7 {[%emt 0:00:50]} 25. Rb6 {[%emt 0:00:16]} Nd6 {[%emt 0:00:18]} 26. Nc5 {[%emt 0:02:51]} Qc7 {[%emt 0:00:42]} 27. Rc6 {[%emt 0:00:01]} Qb8 {[%emt 0:00:19]} 28. Nd7 {[%emt 0:00:48]} Rb1+ {[%emt 0:00:14]} 29. Kg2 {[%emt 0:01:04]} Qb2 {[%emt 0:00:52]} 30. Rxb1 {[%emt 0:00:16]} Qxb1 {[%emt 0:00:04]} 31. Nxf8 {[%emt 0:00:11]} Kxf8 {[%emt 0:00:03]} 32. Qc3 {[%emt 0:02:07]} Kg8 {[%emt 0:01:59]} 33. Qe5 {[%emt 0:00:05]} Qb7 {[%emt 0:00:00]} 34. c4 {[%emt 0:00:21]} Qa7 {[%emt 0:01:00]} 1-0

[Event "Moscow-ch Women 2021"]
[Site "Moscow"]
[Date "2021.03.25"]
[Round "1.2"]
[White "Antonova, Nadezhda"]
[Black "Dimitrova, Aleksandra"]
[Result "1-0"]
[ECO "D05"]
[WhiteElo "1877"]
[BlackElo "2275"]
[Annotator "RC"]
[PlyCount "109"]
[EventDate "2021.03.25"]
[EventType "swiss"]
[EventCountry "RUS"]
[SourceTitle "playchess.com"]
[Source "ChessBase"]
[SourceQuality "1"]
[TimeControl "5400+30"]

1. d4 {[%emt 0:00:00]} Nf6 {[%emt 0:00:00]} 2. Nf3 {[%emt 0:00:00]} e6 {[%emt 0:00:00]} 3. Nbd2 {[%emt 0:00:32]} d5 {[%emt 0:01:51]} 4. e3 {[%emt 0:00:12]} c5 {[%emt 0:03:31]} 5. c3 {[%emt 0:01:10]} Bd6 {[%emt 0:02:04]} 6. Bd3 {[%emt 0:00:17]} Nbd7 {[%emt 0:08:48]} 7. O-O {[%emt 0:03:46]} O-O {[%emt 0:01:52]} 8. Re1 {[%emt 0:12:40]} Qc7 {[%emt 0:03:52]} 9. Nf1 {[%emt 0:21:53]} e5 {[%emt 0:06:00]} 10. dxe5 {[%emt 0:03:55]} Nxe5 {[%emt 0:00:07]} 11. Nxe5 {[%emt 0:00:32]} Bxe5 {[%emt 0:00:04]} 12. c4 {[%emt 0:08:50]} dxc4 {[%emt 0:05:25]} 13. Bxc4 {[%emt 0:00:15]} b6 {[%emt 0:01:00]} 14. Qc2 {[%emt 0:05:54]} Bb7 {[%emt 0:01:25]} 15. f3 {[%emt 0:00:33]} Nd5 {[%emt 0:06:12]} 16. Bd2 {[%emt 0:08:39]} Rad8 {[%emt 0:06:05]} 17. Rad1 {[%emt 0:03:03]} a6 {[%emt 0:12:26]} 18. a3 {[%emt 0:12:36]} Ne7 {[%emt 0:07:20]} 19. Ba2 {[%emt 0:04:12]} b5 {[%emt 0:03:52]} 20. Rc1 {[%emt 0:03:46]} c4 {[%emt 0:03:54]} 21. b3 {[%emt 0:02:35]} c3 {[%emt 0:02:26]} 22. Bxc3 {[%emt 0:01:03]} Rc8 {[%emt 0:01:44]} 23. Bb1 {[%emt 0:00:06]} g6 {[%emt 0:02:22]} 24. Bxe5 {[%emt 0:00:22]} Qxe5 {[%emt 0:00:07]} 25. Qd2 {[%emt 0:02:09]} Nd5 {[%emt 0:20:03]} 26. Be4 {[%emt 0:02:01]} f5 {[%emt 0:00:00]} 27. Bxd5+ {[%emt 0:00:38]} Bxd5 {[%emt 0:00:00]} 28. Rxc8 {[%emt 0:01:18]} Rxc8 {[%emt 0:00:00]} 29. Rc1 {[%emt 0:00:00]} Rxc1 {[%emt 0:00:00]} 30. Qxc1 {[%emt 0:00:01]} Bxb3 {[%emt 0:00:00]} 31. Qc8+ {[%emt 0:00:18]} Kg7 {[%emt 0:00:00]} 32. Qxa6 {[%emt 0:00:42]} Qc5 {[%emt 0:00:00]} 33. Qa5 {[%emt 0:01:14]} Qc1 {[%emt 0:00:00]} 34. Qd2 {[%emt 0:01:06]} Qxa3 {[%emt 0:00:00]} 35. Qd7+ {[%emt 0:00:08]} Kg8 {[%emt 0:00:00]} 36. Qxb5 {[%emt 0:00:02]} Qa2 {[%emt 0:00:00]} 37. Qe8+ {[%emt 0:00:25]} Kg7 {[%emt 0:00:00]} 38. Qd7+ {[%emt 0:00:10]} Kg8 {[%emt 0:00:00]} 39. Qd2 {[%emt 0:00:15]} Qb1 {[%emt 0:00:00]} 40. Kf2 {[%emt 0:00:26]} Bf7 {[%emt 0:02:26]} 41. Ng3 {[%emt 0:01:08]} Qb6 {[%emt 0:00:13]} 42. Ne2 {[%emt 0:00:21]} Qc7 {[%emt 0:00:45]} 43. g3 {[%emt 0:00:19]} Bc4 {[%emt 0:00:55]} 44. Qc3 {[%emt 0:01:31]} Qf7 {[%emt 0:00:32]} 45. Nf4 {[%emt 0:00:18]} Ba6 {[%emt 0:01:11]} 46. Qb2 {[%emt 0:00:16]} Bc4 {[%emt 0:00:50]} 47. Qd2 {[%emt 0:00:54]} Kg7 {[%emt 0:00:42]} 48. h4 {[%emt 0:00:19]} h6 {[%emt 0:01:43]} 49. Ng2 {[%emt 0:00:51]} Bd5 {[%emt 0:00:59]} 50. Ne1 {[%emt 0:00:34]} Qb7 {[%emt 0:00:20]} 51. Qc3+ {[%emt 0:00:37]} Kh7 {[%emt 0:00:20]} 52. Qc2 {[%emt 0:00:23]} h5 {[%emt 0:01:09]} 53. Qe2 {[%emt 0:00:15]} Qb4 {[%emt 0:01:03]} 54. Nc2 {[%emt 0:00:22]} Bc4 {[%emt 0:00:35]} 55. Nxb4 {[%emt 0:00:05]} 1-0

[Event "Moscow-ch Women 2021"]
[Site "Moscow"]
[Date "2021.03.25"]
[Round "1.3"]
[White "Paramzina, Anastasya"]
[Black "Cherepanova, Evita"]
[Result "1/2-1/2"]
[ECO "C00"]
[WhiteElo "2252"]
[BlackElo "1621"]
[Annotator "RC"]
[PlyCount "182"]
[EventDate "2021.03.25"]
[EventType "swiss"]
[EventCountry "RUS"]
[SourceTitle "playchess.com"]
[Source "ChessBase"]
[SourceQuality "1"]
[TimeControl "5400+30"]

1. e4 {[%emt 0:00:00]} e6 {[%emt 0:00:00]} 2. d3 {[%emt 0:00:00]} d5 {[%emt 0:00:00]} 3. Nd2 {[%emt 0:00:00]} c5 {[%emt 0:00:01]} 4. Ngf3 {[%emt 0:00:14]} Nf6 {[%emt 0:00:24]} 5. g3 {[%emt 0:00:12]} Nc6 {[%emt 0:00:15]} 6. Bg2 {[%emt 0:00:06]} Be7 {[%emt 0:00:26]} 7. O-O {[%emt 0:00:08]} O-O {[%emt 0:00:07]} 8. Re1 {[%emt 0:00:35]} b5 {[%emt 0:02:43]} 9. a4 {[%emt 0:12:44]} b4 {[%emt 0:02:48]} 10. h4 {[%emt 0:01:36]} Nd7 {[%emt 0:09:39]} 11. exd5 {[%emt 0:05:17]} exd5 {[%emt 0:00:26]} 12. Nf1 {[%emt 0:00:06]} a5 {[%emt 0:03:23]} 13. Ne3 {[%emt 0:06:09]} Nb6 {[%emt 0:00:34]} 14. Ng5 {[%emt 0:13:12]} Nd4 {[%emt 0:10:44]} 15. Nh3 {[%emt 0:20:39]} Ne6 {[%emt 0:06:24]} 16. f4 {[%emt 0:02:51]} Bf6 {[%emt 0:01:53]} 17. f5 {[%emt 0:01:56]} Nd4 {[%emt 0:02:54]} 18. Rf1 {[%emt 0:00:40]} Ra7 {[%emt 0:02:25]} 19. c3 {[%emt 0:07:03]} bxc3 {[%emt 0:06:36]} 20. bxc3 {[%emt 0:00:07]} Nc6 {[%emt 0:00:08]} 21. Bd2 {[%emt 0:01:51]} Ne5 {[%emt 0:00:56]} 22. Nf4 {[%emt 0:12:02]} d4 {[%emt 0:02:20]} 23. Ned5 {[%emt 0:00:10]} Nxd5 {[%emt 0:00:12]} 24. Nxd5 {[%emt 0:00:12]} Nxd3 {[%emt 0:01:48]} 25. Nxf6+ {[%emt 0:00:16]} Qxf6 {[%emt 0:00:04]} 26. Bg5 {[%emt 0:01:15]} Qa6 {[%emt 0:00:10]} 27. f6 {[%emt 0:04:12]} Bb7 {[%emt 0:02:42]} 28. fxg7 {[%emt 0:01:24]} Re8 {[%emt 0:00:24]} 29. cxd4 {[%emt 0:03:28]} Bxg2 {[%emt 0:00:36]} 30. Kxg2 {[%emt 0:00:09]} cxd4 {[%emt 0:11:03]} 31. Rb1 {[%emt 0:01:57]} Qc6+ {[%emt 0:01:42]} 32. Kg1 {[%emt 0:02:02]} Ne5 {[%emt 0:01:50]} 33. Bf6 {[%emt 0:01:02]} d3 {[%emt 0:02:12]} 34. Bxe5 {[%emt 0:01:21]} Qc5+ {[%emt 0:00:02]} 35. Rf2 {[%emt 0:00:29]} Qxe5 {[%emt 0:00:10]} 36. Qxd3 {[%emt 0:00:06]} Rc7 {[%emt 0:01:55]} 37. Rb5 {[%emt 0:01:04]} Qe1+ {[%emt 0:01:03]} 38. Rf1 {[%emt 0:00:33]} Qe3+ {[%emt 0:00:24]} 39. Qxe3 {[%emt 0:00:09]} Rxe3 {[%emt 0:00:03]} 40. Rg5 {[%emt 0:00:42]} f6 {[%emt 0:00:45]} 41. Rxf6 {[%emt 0:00:20]} Rxg7 {[%emt 0:00:06]} 42. Kg2 {[%emt 0:00:44]} Rxg5 {[%emt 0:00:13]} 43. hxg5 {[%emt 0:00:05]} Re4 {[%emt 0:01:39]} 44. Rf4 {[%emt 0:00:18]} Re5 {[%emt 0:00:03]} 45. Rg4 {[%emt 0:00:14]} Kg7 {[%emt 0:00:11]} 46. Kh3 {[%emt 0:00:21]} h5 {[%emt 0:02:17]} 47. gxh6+ {[%emt 0:00:09]} Kxh6 {[%emt 0:00:04]} 48. Rc4 {[%emt 0:01:00]} Kg5 {[%emt 0:00:50]} 49. Rc8 {[%emt 0:00:22]} Rd5 {[%emt 0:00:50]} 50. Rg8+ {[%emt 0:00:52]} Kh6 {[%emt 0:01:19]} 51. Kh4 {[%emt 0:00:29]} Rd4+ {[%emt 0:00:11]} 52. Rg4 {[%emt 0:00:05]} Rd5 {[%emt 0:00:06]} 53. Rc4 {[%emt 0:00:15]} Re5 {[%emt 0:00:55]} 54. g4 {[%emt 0:00:55]} Kg6 {[%emt 0:00:54]} 55. Rc6+ {[%emt 0:00:18]} Kg7 {[%emt 0:00:23]} 56. Ra6 {[%emt 0:00:10]} Kf8 {[%emt 0:02:17]} 57. Rf6+ {[%emt 0:00:25]} Kg7 {[%emt 0:00:09]} 58. Rf4 {[%emt 0:01:24]} Kg6 {[%emt 0:00:35]} 59. Rc4 {[%emt 0:00:10]} Rd5 {[%emt 0:02:53]} 60. Re4 {[%emt 0:01:36]} Rc5 {[%emt 0:00:16]} 61. Rd4 {[%emt 0:00:27]} Re5 {[%emt 0:00:09]} 62. g5 {[%emt 0:01:04]} Re1 {[%emt 0:00:29]} 63. Rd6+ {[%emt 0:00:24]} Kg7 {[%emt 0:00:37]} 64. Kh5 {[%emt 0:00:26]} Rh1+ {[%emt 0:00:49]} 65. Kg4 {[%emt 0:00:02]} Rg1+ {[%emt 0:00:38]} 66. Kh5 {[%emt 0:00:04]} Rh1+ {[%emt 0:00:05]} 67. Kg4 {[%emt 0:00:02]} Rg1+ {[%emt 0:00:02]} 68. Kf5 {[%emt 0:00:06]} Rf1+ {[%emt 0:00:18]} 69. Ke4 {[%emt 0:00:54]} Ra1 {[%emt 0:00:33]} 70. Rd5 {[%emt 0:00:57]} Rxa4+ {[%emt 0:00:29]} 71. Kf5 {[%emt 0:00:05]} Ra1 {[%emt 0:00:23]} 72. Rd7+ {[%emt 0:00:07]} Kf8 {[%emt 0:00:40]} 73. Ra7 {[%emt 0:01:52]} a4 {[%emt 0:01:05]} 74. Kf6 {[%emt 0:00:14]} Rf1+ {[%emt 0:00:07]} 75. Kg6 {[%emt 0:00:04]} Ra1 {[%emt 0:01:10]} 76. Kf6 {[%emt 0:01:14]} Rf1+ {[%emt 0:00:04]} 77. Kg6 {[%emt 0:00:03]} Ra1 {[%emt 0:00:02]} 78. Ra8+ {[%emt 0:01:17]} Ke7 {[%emt 0:00:03]} 79. Kh7 {[%emt 0:00:31]} a3 {[%emt 0:00:49]} 80. g6 {[%emt 0:00:03]} Rh1+ {[%emt 0:00:03]} 81. Kg8 {[%emt 0:00:22]} Ra1 {[%emt 0:00:55]} 82. Ra7+ {[%emt 0:00:21]} Ke6 {[%emt 0:00:46]} 83. g7 {[%emt 0:00:22]} a2 {[%emt 0:00:26]} 84. Kf8 {[%emt 0:01:28]} Rf1+ {[%emt 0:00:05]} 85. Ke8 {[%emt 0:00:05]} Rg1 {[%emt 0:00:24]} 86. Ra6+ {[%emt 0:00:12]} Ke5 {[%emt 0:00:44]} 87. Ra5+ {[%emt 0:01:02]} Ke6 {[%emt 0:00:11]} 88. Ra6+ {[%emt 0:00:44]} Ke5 {[%emt 0:00:04]} 89. Ra5+ {[%emt 0:00:43]} Ke6 {[%emt 0:00:04]} 90. Ra6+ {[%emt 0:00:15]} Ke5 {[%emt 0:00:03]} 91. Ra5+ {[%emt 0:00:59]} Ke6 {[%emt 0:00:10]} 1/2-1/2

[Event "Moscow-ch Women 2021"]
[Site "Moscow"]
[Date "2021.03.26"]
[Round "2.1"]
[White "Danilova, Rada"]
[Black "Charochkina, Daria"]
[Result "0-1"]
[ECO "E30"]
[WhiteElo "2048"]
[BlackElo "2337"]
[Annotator "ChessBase"]
[PlyCount "78"]
[EventDate "2021.03.25"]
[EventType "swiss"]
[EventCountry "RUS"]
[SourceTitle "playchess.com"]
[Source "ChessBase"]
[SourceQuality "1"]
[TimeControl "5400+30"]

1. d4 {[%emt 0:00:00]} Nf6 {[%emt 0:00:00]} 2. Nf3 {[%emt 0:00:00]} e6 {[%emt 0:00:00]} 3. c4 {[%emt 0:00:00]} Nc6 {[%emt 0:00:00]} 4. Nc3 {[%emt 0:03:02]} Bb4 {[%emt 0:01:09]} 5. Bg5 {[%emt 0:02:50]} h6 {[%emt 0:01:31]} 6. Bxf6 {[%emt 0:00:58]} Qxf6 {[%emt 0:00:13]} 7. e4 {[%emt 0:00:39]} Bxc3+ {[%emt 0:05:46]} 8. bxc3 {[%emt 0:00:02]} d6 {[%emt 0:00:26]} 9. g3 {[%emt 0:06:01]} O-O {[%emt 0:00:57]} 10. Bg2 {[%emt 0:00:16]} e5 {[%emt 0:01:00]} 11. d5 {[%emt 0:06:23]} Nb8 {[%emt 0:00:38]} 12. Nd2 {[%emt 0:10:48]} a5 {[%emt 0:01:58]} 13. O-O {[%emt 0:00:57]} Na6 {[%emt 0:02:04]} 14. Nb3 {[%emt 0:10:08]} b6 {[%emt 0:21:54]} 15. f4 {[%emt 0:03:59]} a4 {[%emt 0:02:35]} 16. fxe5 {[%emt 0:01:27]} Qxe5 {[%emt 0:04:38]} 17. Nd4 {[%emt 0:00:10]} Nc5 {[%emt 0:02:04]} 18. Qe2 {[%emt 0:04:14]} Bd7 {[%emt 0:01:21]} 19. Rae1 {[%emt 0:01:34]} Rae8 {[%emt 0:06:50]} 20. Qd2 {[%emt 0:03:08]} Qg5 {[%emt 0:13:03]} 21. Qc2 {[%emt 0:11:57]} g6 {[%emt 0:04:44]} 22. Nf3 {[%emt 0:04:38]} Qf6 {[%emt 0:04:10]} 23. Nd4 {[%emt 0:02:38]} Qg7 {[%emt 0:00:19]} 24. Qd2 {[%emt 0:03:40]} Re7 {[%emt 0:00:37]} 25. Re3 {[%emt 0:02:35]} Rfe8 {[%emt 0:02:09]} 26. Rfe1 {[%emt 0:00:10]} Re5 {[%emt 0:00:16]} 27. Qf2 {[%emt 0:02:21]} f5 {[%emt 0:05:51]} 28. Qc2 {[%emt 0:09:22]} fxe4 {[%emt 0:05:27]} 29. Rf1 {[%emt 0:00:28]} Rf8 {[%emt 0:03:31]} 30. Rfe1 {[%emt 0:00:04]} Nd3 {[%emt 0:02:11]} 31. R1e2 {[%emt 0:00:07]} Bg4 {[%emt 0:05:56]} 32. Rd2 {[%emt 0:01:09]} Qf6 {[%emt 0:00:09]} 33. h3 {[%emt 0:01:09]} Qg5 {[%emt 0:00:55]} 34. Rxe4 {[%emt 0:05:48]} Rxe4 {[%emt 0:00:13]} 35. Bxe4 {[%emt 0:01:50]} Qe3+ {[%emt 0:00:04]} 36. Kh2 {[%emt 0:00:12]} Ne1 {[%emt 0:00:54]} 37. Qc1 {[%emt 0:02:44]} Qxe4 {[%emt 0:01:00]} 38. Re2 {[%emt 0:00:57]} Bxe2 {[%emt 0:00:19]} 39. Qxe1 {[%emt 0:00:02]} Rf1 {[%emt 0:00:20]} 0-1

[Event "Moscow-ch Women 2021"]
[Site "Moscow"]
[Date "2021.03.26"]
[Round "2.2"]
[White "Diakonova, Ekaterina"]
[Black "Shvedova, Alexandra"]
[Result "1/2-1/2"]
[ECO "C66"]
[WhiteElo "2156"]
[BlackElo "1997"]
[Annotator "NA"]
[PlyCount "82"]
[EventDate "2021.03.25"]
[EventType "swiss"]
[EventCountry "RUS"]
[SourceTitle "playchess.com"]
[Source "ChessBase"]
[SourceQuality "1"]
[TimeControl "5400+30"]

1. e4 {[%emt 0:05:24]} e5 {[%emt 0:00:00]} 2. Nf3 {[%emt 0:00:06]} Nc6 {[%emt 0:00:00]} 3. Bb5 {[%emt 0:00:04]} Nf6 {[%emt 0:00:00]} 4. d3 {[%emt 0:00:03]} d6 {[%emt 0:00:00]} 5. c3 {[%emt 0:00:05]} g6 {[%emt 0:00:03]} 6. O-O {[%emt 0:00:05]} Bg7 {[%emt 0:00:04]} 7. Nbd2 {[%emt 0:00:04]} O-O {[%emt 0:00:13]} 8. Re1 {[%emt 0:00:10]} Re8 {[%emt 0:00:19] now scores much better than the old 8...a6.} 9. Nf1 {[%emt 0:09:45]} a6 {[%emt 0:02:30]} 10. Ba4 {[%emt 0:00:59]} b5 {[%emt 0:04:13]} 11. Bc2 {[%emt 0:00:55]} d5 {[%emt 0:03:13]} 12. a4 {[%emt 0:02:28] [#]} Be6 $146 {[%emt 0:05:24]} ({Predecessor:} 12... Rb8 13. Ng3 d4 14. cxd4 Nxd4 15. Nxd4 Qxd4 16. Be3 Qxb2 17. Qd2 bxa4 18. Reb1 a3 19. Rxb2 axb2 20. Rb1 Bf8 21. Ba4 {1-0 (21) Chandika,D (2160)-Babu,N (2296) Chennai 2012}) 13. axb5 {[%emt 0:18:11]} axb5 {[%emt 0:00:06]} 14. Rxa8 {[%emt 0:00:03]} Qxa8 {[%emt 0:00:06]} 15. exd5 {[%emt 0:00:25]} Nxd5 {[%emt 0:01:45]} 16. Ng5 {[%emt 0:00:50]} Qd8 {[%emt 0:10:53]} 17. Nxe6 {[%emt 0:02:28]} Rxe6 {[%emt 0:00:06]} 18. Bb3 {[%emt 0:01:11]} Rd6 {[%emt 0:03:09]} 19. Qf3 {[%emt 0:02:40]} Nf6 {[%emt 0:14:01]} 20. Be3 {[%emt 0:02:48]} Qd7 {[%emt 0:11:13]} 21. Bc2 {[%emt 0:09:28]} Nd5 {[%emt 0:17:01]} 22. Bc5 {[%emt 0:02:35]} Rf6 $14 {[%emt 0:00:22]} 23. Qe4 {[%emt 0:00:18]} Nf4 {[%emt 0:01:10]} 24. d4 {[%emt 0:03:49]} Ne6 {[%emt 0:00:29]} 25. dxe5 {[%emt 0:16:47]} Nxc5 {[%emt 0:01:16]} 26. Qe3 {[%emt 0:00:25]} Re6 {[%emt 0:00:20]} 27. Qxc5 {[%emt 0:00:05]} Rxe5 {[%emt 0:00:27]} 28. Rxe5 {[%emt 0:00:25]} Nxe5 {[%emt 0:00:04]} 29. Be4 {[%emt 0:07:51]} h5 {[%emt 0:11:37]} 30. h3 {[%emt 0:03:24]} f5 {[%emt 0:10:35]} 31. Bd5+ {[%emt 0:00:28]} Kh7 {[%emt 0:00:08]} 32. f4 {[%emt 0:07:31]} Nd3 {[%emt 0:00:19]} 33. Qc6 {[%emt 0:00:01]} Qe7 {[%emt 0:02:22]} 34. Qxb5 {[%emt 0:03:35]} Qe2 {[%emt 0:00:38]} 35. Ng3 {[%emt 0:00:09]} Qf2+ {[%emt 0:00:28]} 36. Kh2 {[%emt 0:00:01]} Nxf4 {[%emt 0:00:16]} 37. Bf3 {[%emt 0:01:03]} Qc2 {[%emt 0:01:43]} 38. Ne2 {[%emt 0:01:25]} Nd3 {[%emt 0:01:05]} 39. Nd4 {[%emt 0:00:19]} Qd2 {[%emt 0:00:32]} 40. Qd7 {[%emt 0:00:14]} Kh6 {[%emt 0:00:44]} 41. Nc6 {[%emt 0:00:01]} Qf4+ {[%emt 0:00:23]} 1/2-1/2

[Event "Moscow-ch Women 2021"]
[Site "Moscow"]
[Date "2021.03.26"]
[Round "2.3"]
[White "Ilyina, Lada"]
[Black "Zherebtsova, Alexandra"]
[Result "0-1"]
[ECO "C55"]
[WhiteElo "1959"]
[BlackElo "2177"]
[Annotator "ChessBase"]
[PlyCount "74"]
[EventDate "2021.03.25"]
[EventType "swiss"]
[EventCountry "RUS"]
[SourceTitle "playchess.com"]
[Source "ChessBase"]
[SourceQuality "1"]
[TimeControl "5400+30"]

1. e4 {[%emt 0:00:00]} e5 {[%emt 0:02:20]} 2. Nf3 {[%emt 0:00:00]} Nc6 {[%emt 0:00:32]} 3. Bc4 {[%emt 0:00:00]} Nf6 {[%emt 0:02:48]} 4. d3 {[%emt 0:00:06]} h6 {[%emt 0:00:12]} 5. c3 {[%emt 0:00:58]} d6 {[%emt 0:01:23]} 6. Nbd2 {[%emt 0:07:31]} Qe7 {[%emt 0:05:41]} 7. Nf1 {[%emt 0:03:32]} g6 {[%emt 0:01:30]} 8. Ne3 {[%emt 0:00:08]} Bg7 {[%emt 0:01:22]} 9. b4 {[%emt 0:03:15]} Nd8 {[%emt 0:03:34]} 10. Bb2 {[%emt 0:07:24]} Ne6 {[%emt 0:13:10]} 11. g3 {[%emt 0:01:59]} c6 {[%emt 0:01:53]} 12. a4 {[%emt 0:07:30]} O-O {[%emt 0:15:18]} 13. a5 {[%emt 0:03:56]} Nc7 {[%emt 0:03:45]} 14. Bb3 {[%emt 0:08:49]} d5 {[%emt 0:03:18]} 15. Bc2 {[%emt 0:01:01]} Ng4 {[%emt 0:08:40]} 16. O-O {[%emt 0:05:19]} Be6 {[%emt 0:09:13]} 17. Nd2 {[%emt 0:03:23]} f5 {[%emt 0:06:26]} 18. Nxg4 {[%emt 0:05:13]} fxg4 {[%emt 0:00:01]} 19. c4 {[%emt 0:01:10]} d4 {[%emt 0:01:19]} 20. Ba4 {[%emt 0:13:27]} Rf7 {[%emt 0:03:44]} 21. Ba3 {[%emt 0:00:52]} Qg5 {[%emt 0:07:17]} 22. b5 {[%emt 0:05:20]} cxb5 {[%emt 0:00:11]} 23. cxb5 {[%emt 0:00:14]} Bf8 {[%emt 0:00:14]} 24. Bxf8 {[%emt 0:02:34]} Raxf8 {[%emt 0:00:19]} 25. b6 {[%emt 0:00:26]} axb6 {[%emt 0:00:30]} 26. axb6 {[%emt 0:00:02]} Ne8 {[%emt 0:03:52]} 27. Nb3 {[%emt 0:01:48]} Kg7 {[%emt 0:00:50]} 28. Nc5 {[%emt 0:00:30]} Bc8 {[%emt 0:00:48]} 29. Bb3 {[%emt 0:01:06]} Rf6 {[%emt 0:00:43]} 30. Ra8 {[%emt 0:00:17]} Nd6 {[%emt 0:00:49]} 31. Bd5 {[%emt 0:02:00]} Nb5 {[%emt 0:01:26]} 32. Rxc8 {[%emt 0:07:41]} Rxc8 {[%emt 0:00:11]} 33. Qa4 {[%emt 0:00:02]} Rxc5 {[%emt 0:00:52]} 34. Qa8 {[%emt 0:02:42]} Rxd5 {[%emt 0:00:42]} 35. Qxb7+ {[%emt 0:00:16]} Rf7 {[%emt 0:00:07]} 36. Qxd5 {[%emt 0:00:04]} Nc3 {[%emt 0:00:20]} 37. Qc6 {[%emt 0:01:44]} Qf6 {[%emt 0:03:10]} 0-1

[Event "Moscow-ch Women 2021"]
[Site "Moscow"]
[Date "2021.03.26"]
[Round "2.4"]
[White "Kanevskaya, Anna"]
[Black "Zvereva, Margarita"]
[Result "0-1"]
[ECO "D63"]
[WhiteElo "2130"]
[BlackElo "1951"]
[Annotator "ChessBase"]
[PlyCount "76"]
[EventDate "2021.03.25"]
[EventType "swiss"]
[EventCountry "RUS"]
[SourceTitle "playchess.com"]
[Source "ChessBase"]
[SourceQuality "1"]
[TimeControl "5400+30"]

1. d4 {[%emt 0:04:52]} d5 {[%emt 0:00:00]} 2. c4 {[%emt 0:00:03]} e6 {[%emt 0:00:00]} 3. Nf3 {[%emt 0:00:03]} Nf6 {[%emt 0:00:11]} 4. Nc3 {[%emt 0:00:04]} Nbd7 {[%emt 0:00:53]} 5. Bg5 {[%emt 0:00:05]} Be7 {[%emt 0:00:15]} 6. e3 {[%emt 0:00:06]} O-O {[%emt 0:00:26]} 7. Rc1 {[%emt 0:00:04]} h6 {[%emt 0:02:30]} 8. Bh4 {[%emt 0:00:04]} dxc4 {[%emt 0:06:57]} 9. Bxc4 {[%emt 0:00:05]} a6 {[%emt 0:00:34]} 10. a4 {[%emt 0:03:27]} c5 {[%emt 0:00:48]} 11. O-O {[%emt 0:00:20]} b6 {[%emt 0:05:00]} 12. Qe2 {[%emt 0:03:37]} Bb7 {[%emt 0:14:44]} 13. Bd3 {[%emt 0:13:53]} Nh5 {[%emt 0:02:12]} 14. Bxe7 {[%emt 0:03:47]} Qxe7 {[%emt 0:00:05]} 15. Bb1 {[%emt 0:05:15]} Nhf6 {[%emt 0:05:37]} 16. Ne5 {[%emt 0:09:06]} cxd4 {[%emt 0:08:16]} 17. exd4 {[%emt 0:00:38]} Rac8 {[%emt 0:00:12]} 18. Rfd1 {[%emt 0:04:33]} Rfd8 {[%emt 0:00:37]} 19. Rc2 {[%emt 0:13:13]} Nb8 {[%emt 0:11:27]} 20. Rcd2 {[%emt 0:03:42]} a5 {[%emt 0:04:37]} 21. Bd3 {[%emt 0:13:38]} Nc6 {[%emt 0:02:59]} 22. Bb5 {[%emt 0:08:50]} Nb4 {[%emt 0:02:02]} 23. Nc4 {[%emt 0:06:28]} Nbd5 {[%emt 0:09:33]} 24. Nxd5 {[%emt 0:02:32]} Nxd5 {[%emt 0:00:09]} 25. Qg4 {[%emt 0:02:02]} Rc7 {[%emt 0:11:46]} 26. Qg3 {[%emt 0:00:39]} Bc6 {[%emt 0:02:40]} 27. Bxc6 {[%emt 0:01:36]} Rxc6 {[%emt 0:00:04]} 28. Ne5 {[%emt 0:00:31]} Rc7 {[%emt 0:00:20]} 29. Ng4 {[%emt 0:00:30]} Kh8 {[%emt 0:01:08]} 30. Ne3 {[%emt 0:00:37]} Rc6 {[%emt 0:07:18]} 31. Ng4 {[%emt 0:00:30]} Rdc8 {[%emt 0:02:10]} 32. Ne5 {[%emt 0:00:25]} Rc1 {[%emt 0:00:00]} 33. Qf3 {[%emt 0:00:37]} Kg8 {[%emt 0:00:00]} 34. h3 {[%emt 0:00:32]} Rxd1+ {[%emt 0:00:00]} 35. Rxd1 {[%emt 0:00:17]} Rc2 {[%emt 0:00:01]} 36. Qb3 {[%emt 0:00:44]} Qc7 {[%emt 0:00:24]} 37. Qb5 {[%emt 0:00:29]} Qc8 {[%emt 0:00:59]} 38. Qd3 {[%emt 0:00:32]} Rxb2 {[%emt 0:01:15]} 0-1